[Event "*** Titled Tuesday Blitz"]
[Site "Chess.com"]
[Date "2020.12.01"]
[Round "6"]
[White "coco_crc"]
[Black "Chuchofrio1"]
[Result "1-0"]
[WhiteElo "2194"]
[BlackElo "2442"]
[TimeControl "180+1"]
[EndTime "11:04:46 PST"]
[Termination "coco_crc won by resignation"]

1. e4 {[%clk 0:03:00.9]} 1... e5 {[%clk 0:02:49.8]} 2. Nf3 {[%clk 0:02:57.9]}
2... Nc6 {[%clk 0:02:49.7]} 3. c3 {[%clk 0:02:58.2]} 3... Nf6 {[%clk 0:02:48.8]}
4. d4 {[%clk 0:02:57.8]} 4... d6 {[%clk 0:02:47.3]} 5. dxe5 {[%clk 0:02:57.6]}
5... Nxe5 {[%clk 0:02:47.7]} 6. Nxe5 {[%clk 0:02:57.1]} 6... dxe5 {[%clk
0:02:48.6]} 7. Qxd8+ {[%clk 0:02:57.6]} 7... Kxd8 {[%clk 0:02:48.3]} 8. Bg5
{[%clk 0:02:58.5]} 8... Be7 {[%clk 0:02:47.6]} 9. Nd2 {[%clk 0:02:58.4]} 9... c6
{[%clk 0:02:47.8]} 10. O-O-O {[%clk 0:02:58]} 10... Kc7 {[%clk 0:02:47.5]} 11.
f3 {[%clk 0:02:58]} 11... Be6 {[%clk 0:02:47.1]} 12. Bc4 {[%clk 0:02:56.1]}
12... b5 {[%clk 0:02:39]} 13. Bxe6 {[%clk 0:02:55.7]} 13... fxe6 {[%clk
0:02:39.9]} 14. Be3 {[%clk 0:02:48]} 14... a5 {[%clk 0:02:38.6]} 15. Nb3 {[%clk
0:02:47.1]} 15... Nd7 {[%clk 0:02:35.3]} 16. Kc2 {[%clk 0:02:39.7]} 16... a4
{[%clk 0:02:21.4]} 17. Nc1 {[%clk 0:02:35]} 17... Rhd8 {[%clk 0:02:07.6]} 18.
Bf2 {[%clk 0:02:34.2]} 18... Bc5 {[%clk 0:02:01.2]} 19. Bg3 {[%clk 0:02:32.7]}
19... b4 {[%clk 0:01:55.6]} 20. Nd3 {[%clk 0:02:16.6]} 20... b3+ {[%clk
0:01:49]} 21. axb3 {[%clk 0:02:16.3]} 21... axb3+ {[%clk 0:01:49.9]} 22. Kxb3
{[%clk 0:02:15.8]} 22... Kb6 {[%clk 0:01:50.8]} 23. Nxe5 {[%clk 0:02:08.4]}
23... Nxe5 {[%clk 0:01:48.7]} 24. Bxe5 {[%clk 0:02:09.3]} 24... g6 {[%clk
0:01:45.7]} 25. Bd4 {[%clk 0:02:05.1]} 25... Bxd4 {[%clk 0:01:43]} 26. Rxd4
{[%clk 0:02:06]} 26... Rxd4 {[%clk 0:01:42.7]} 27. cxd4 {[%clk 0:02:06.9]} 27...
Rd8 {[%clk 0:01:43.1]} 28. Kc4 {[%clk 0:02:05.5]} 28... Ra8 {[%clk 0:01:38.6]}
29. Rb1 {[%clk 0:02:00.1]} 29... Ra4+ {[%clk 0:01:31.9]} 30. Kc3 {[%clk
0:01:59]} 30... c5 {[%clk 0:01:32.1]} 31. dxc5+ {[%clk 0:01:56.4]} 31... Kxc5
{[%clk 0:01:33]} 32. b4+ {[%clk 0:01:55]} 32... Kb5 {[%clk 0:01:31.9]} 33. Rb2
{[%clk 0:01:51.1]} 33... Ra3+ {[%clk 0:01:30.3]} 34. Kd4 {[%clk 0:01:50.6]}
34... Ra6 {[%clk 0:01:17.2]} 35. Ke5 {[%clk 0:01:49.9]} 35... Rc6 {[%clk
0:01:17.2]} 36. h4 {[%clk 0:01:47.2]} 36... Rb6 {[%clk 0:01:12.1]} 37. g4 {[%clk
0:01:46.5]} 37... Rc6 {[%clk 0:01:11.4]} 38. f4 {[%clk 0:01:36.8]} 38... Ra6
{[%clk 0:01:03.8]} 39. f5 {[%clk 0:01:29.3]} 39... gxf5 {[%clk 0:01:04.7]} 40.
gxf5 {[%clk 0:01:28.9]} 40... exf5 {[%clk 0:01:05.6]} 41. exf5 {[%clk
0:01:28.9]} 41... Ra1 {[%clk 0:01:05.8]} 42. Rf2 {[%clk 0:01:22]} 42... Re1+
{[%clk 0:01:03.8]} 43. Kd6 {[%clk 0:01:21.6]} 43... Kb6 {[%clk 0:00:59.9]} 44.
f6 {[%clk 0:01:19.9]} 44... Rd1+ {[%clk 0:01:00.8]} 45. Ke7 {[%clk 0:01:19.6]}
45... Re1+ {[%clk 0:00:57.7]} 46. Kf8 {[%clk 0:01:19.4]} 46... Kc7 {[%clk
0:00:57.9]} 47. f7 {[%clk 0:01:19]} 47... Rg1 {[%clk 0:00:57.4]} 48. Rf4 {[%clk
0:01:09.5]} 48... Kd7 {[%clk 0:00:54.8]} 49. b5 {[%clk 0:01:09.1]} 49... h5
{[%clk 0:00:44.5]} 50. b6 {[%clk 0:01:08.5]} 50... Rg6 {[%clk 0:00:26.1]} 51. b7
{[%clk 0:01:04.1]} 51... Rh6 {[%clk 0:00:26.2]} 52. Kg7 {[%clk 0:01:03.4]} 52...
Rb6 {[%clk 0:00:25.8]} 1-0

[Event "*** Titled Tuesday Blitz"]
[Site "Chess.com"]
[Date "2020.12.01"]
[Round "6"]
[White "maxz1996"]
[Black "MIJuanReyesRosa"]
[Result "1-0"]
[WhiteElo "2220"]
[BlackElo "2054"]
[TimeControl "180+1"]
[EndTime "11:04:46 PST"]
[Termination "maxz1996 won on time"]

1. e4 {[%clk 0:03:00.9]} 1... c5 {[%clk 0:02:56.7]} 2. Nc3 {[%clk 0:02:55.5]}
2... a6 {[%clk 0:02:55.6]} 3. Nf3 {[%clk 0:02:54.7]} 3... e6 {[%clk 0:02:54.4]}
4. d4 {[%clk 0:02:54.9]} 4... cxd4 {[%clk 0:02:54.3]} 5. Nxd4 {[%clk 0:02:55.8]}
5... Qc7 {[%clk 0:02:53.6]} 6. a3 {[%clk 0:02:55.6]} 6... Nf6 {[%clk 0:02:51.5]}
7. Be3 {[%clk 0:02:54.2]} 7... b5 {[%clk 0:02:48.4]} 8. f4 {[%clk 0:02:53.2]}
8... d6 {[%clk 0:02:47.2]} 9. Bd3 {[%clk 0:02:47.6]} 9... Bb7 {[%clk 0:02:46.7]}
10. Qf3 {[%clk 0:02:44.7]} 10... Nbd7 {[%clk 0:02:42.9]} 11. O-O {[%clk
0:02:43.6]} 11... Be7 {[%clk 0:02:42.2]} 12. Rae1 {[%clk 0:01:59.8]} 12... O-O
{[%clk 0:02:39]} 13. f5 {[%clk 0:01:49.4]} 13... e5 {[%clk 0:02:22.9]} 14. Nde2
{[%clk 0:01:45.4]} 14... d5 {[%clk 0:01:48.9]} 15. Nxd5 {[%clk 0:01:26.7]} 15...
Nxd5 {[%clk 0:01:46.4]} 16. exd5 {[%clk 0:01:27.1]} 16... Nf6 {[%clk 0:01:39.2]}
17. Nc3 {[%clk 0:01:20.3]} 17... Rfd8 {[%clk 0:01:31]} 18. Be4 {[%clk
0:01:17.3]} 18... Bc5 {[%clk 0:01:16.8]} 19. Rd1 {[%clk 0:01:09.9]} 19... Bxe3+
{[%clk 0:00:57.1]} 20. Qxe3 {[%clk 0:01:09.4]} 20... Ng4 {[%clk 0:00:57.1]} 21.
Qg3 {[%clk 0:00:36]} 21... Qb6+ {[%clk 0:00:48.4]} 22. Kh1 {[%clk 0:00:34.5]}
22... Ne3 {[%clk 0:00:43.6]} 23. f6 {[%clk 0:00:32.3]} 23... g6 {[%clk
0:00:34.2]} 24. Qg5 {[%clk 0:00:27.1]} 24... Nxd1 {[%clk 0:00:30.3]} 25. Qh6
{[%clk 0:00:21.9]} 25... Qxf6 {[%clk 0:00:07.1]} 26. Rxf6 {[%clk 0:00:22.8]}
26... Nf2+ {[%clk 0:00:04.1]} 27. Rxf2 {[%clk 0:00:19.1]} 1-0

[Event "*** Titled Tuesday Blitz"]
[Site "Chess.com"]
[Date "2020.12.01"]
[Round "6"]
[White "TrenerChos"]
[Black "ybruned"]
[Result "1-0"]
[WhiteElo "2181"]
[BlackElo "2280"]
[TimeControl "180+1"]
[EndTime "11:04:49 PST"]
[Termination "TrenerChos won on time"]

1. d4 {[%clk 0:03:00.6]} 1... Nf6 {[%clk 0:02:59.5]} 2. Nf3 {[%clk 0:03:00.1]}
2... e6 {[%clk 0:02:59.8]} 3. g3 {[%clk 0:03:01]} 3... b6 {[%clk 0:02:59.5]} 4.
Bg2 {[%clk 0:03:00.8]} 4... Bb7 {[%clk 0:03:00.2]} 5. O-O {[%clk 0:03:00.6]}
5... Be7 {[%clk 0:03:00.7]} 6. c4 {[%clk 0:03:00.1]} 6... O-O {[%clk 0:02:57.5]}
7. Nc3 {[%clk 0:02:59.9]} 7... d5 {[%clk 0:02:58.1]} 8. Ne5 {[%clk 0:02:57]}
8... Nbd7 {[%clk 0:02:57.8]} 9. cxd5 {[%clk 0:02:56]} 9... exd5 {[%clk
0:02:55.6]} 10. Qa4 {[%clk 0:02:52.3]} 10... Nxe5 {[%clk 0:01:47.3]} 11. dxe5
{[%clk 0:02:49.6]} 11... Nd7 {[%clk 0:01:48]} 12. Nxd5 {[%clk 0:02:47.9]} 12...
Nc5 {[%clk 0:01:34.7]} 13. Qc4 {[%clk 0:02:37.5]} 13... b5 {[%clk 0:01:23]} 14.
Qd4 {[%clk 0:02:22.7]} 14... Ne6 {[%clk 0:01:12.4]} 15. Qd1 {[%clk 0:02:18.6]}
15... Rb8 {[%clk 0:01:09.5]} 16. Be3 {[%clk 0:02:14]} 16... c5 {[%clk
0:01:04.4]} 17. Nxe7+ {[%clk 0:01:59.9]} 17... Qxe7 {[%clk 0:01:03.4]} 18. Qd6
{[%clk 0:01:55.6]} 18... Qxd6 {[%clk 0:00:47.3]} 19. exd6 {[%clk 0:01:56.4]}
19... Bxg2 {[%clk 0:00:47.9]} 20. Kxg2 {[%clk 0:01:55.5]} 20... Rfd8 {[%clk
0:00:48.5]} 21. f4 {[%clk 0:01:54.2]} 21... g6 {[%clk 0:00:44.9]} 22. Rad1
{[%clk 0:01:48.1]} 22... Rb6 {[%clk 0:00:42.9]} 23. b4 {[%clk 0:01:21.5]} 23...
Rbxd6 {[%clk 0:00:22.5]} 24. Rxd6 {[%clk 0:01:17.4]} 24... Rxd6 {[%clk 0:00:23]}
25. bxc5 {[%clk 0:01:18.1]} 25... Rc6 {[%clk 0:00:23.8]} 26. Kf3 {[%clk
0:01:17]} 26... f5 {[%clk 0:00:21.6]} 27. Rd1 {[%clk 0:01:15.5]} 27... Rc7
{[%clk 0:00:20.5]} 28. Rd5 {[%clk 0:01:10.6]} 28... Kf7 {[%clk 0:00:19.2]} 29.
h3 {[%clk 0:01:06.3]} 29... a5 {[%clk 0:00:18.4]} 30. g4 {[%clk 0:01:02.6]}
30... fxg4+ {[%clk 0:00:13.1]} 31. hxg4 {[%clk 0:01:03.5]} 31... b4 {[%clk
0:00:09.3]} 32. f5 {[%clk 0:01:02.7]} 32... Nf8 {[%clk 0:00:09.6]} 33. Bf4
{[%clk 0:00:59.3]} 33... Rc6 {[%clk 0:00:08.2]} 34. Bd6 {[%clk 0:00:55.2]} 34...
Nd7 {[%clk 0:00:05.4]} 35. e4 {[%clk 0:00:50]} 35... a4 {[%clk 0:00:04.7]} 36.
e5 {[%clk 0:00:48.1]} 1-0

[Event "*** Titled Tuesday Blitz"]
[Site "Chess.com"]
[Date "2020.12.01"]
[Round "6"]
[White "underdogchss"]
[Black "awesomevishesh"]
[Result "0-1"]
[WhiteElo "2353"]
[BlackElo "2544"]
[TimeControl "180+1"]
[EndTime "11:04:50 PST"]
[Termination "awesomevishesh won on time"]

1. d4 {[%clk 0:03:00.9]} 1... Nf6 {[%clk 0:02:58.3]} 2. Nf3 {[%clk 0:03:00.5]}
2... g6 {[%clk 0:02:58.8]} 3. c4 {[%clk 0:03:00.3]} 3... Bg7 {[%clk 0:02:59.4]}
4. Nc3 {[%clk 0:03:00.8]} 4... O-O {[%clk 0:03:00.3]} 5. e4 {[%clk 0:03:00.9]}
5... d6 {[%clk 0:03:01.2]} 6. Be2 {[%clk 0:03:00.3]} 6... Nbd7 {[%clk
0:03:01.6]} 7. O-O {[%clk 0:02:56.3]} 7... e5 {[%clk 0:03:02.5]} 8. Be3 {[%clk
0:02:56.8]} 8... c6 {[%clk 0:03:01.9]} 9. d5 {[%clk 0:02:56.3]} 9... c5 {[%clk
0:03:02]} 10. Ne1 {[%clk 0:02:55.7]} 10... Ne8 {[%clk 0:03:02.3]} 11. Nd3 {[%clk
0:02:50.2]} 11... f5 {[%clk 0:03:02.9]} 12. exf5 {[%clk 0:02:40.7]} 12... gxf5
{[%clk 0:03:02.3]} 13. f4 {[%clk 0:02:40.6]} 13... e4 {[%clk 0:02:57]} 14. Nf2
{[%clk 0:02:40.3]} 14... Bxc3 {[%clk 0:02:50.5]} 15. bxc3 {[%clk 0:02:39.6]}
15... Ndf6 {[%clk 0:02:49.4]} 16. h3 {[%clk 0:02:29.3]} 16... Kh8 {[%clk
0:02:48.9]} 17. Kh2 {[%clk 0:02:15.5]} 17... Qe7 {[%clk 0:02:48.9]} 18. g4
{[%clk 0:02:11.5]} 18... fxg4 {[%clk 0:02:45.5]} 19. hxg4 {[%clk 0:02:12.4]}
19... Ng7 {[%clk 0:02:31.6]} 20. Rh1 {[%clk 0:01:42.7]} 20... Nfh5 {[%clk
0:02:22.2]} 21. gxh5 {[%clk 0:01:31.7]} 21... Nf5 {[%clk 0:02:20.7]} 22. Nh3
{[%clk 0:00:24]} 22... Nxe3 {[%clk 0:02:18.4]} 23. Qg1 {[%clk 0:00:24]} 23...
Bxh3 {[%clk 0:01:16.5]} 24. Qxe3 {[%clk 0:00:23.2]} 24... Bf5 {[%clk 0:01:11.1]}
25. Kg2 {[%clk 0:00:16.1]} 25... Rg8+ {[%clk 0:01:08.9]} 26. Kf2 {[%clk
0:00:16.1]} 26... Raf8 {[%clk 0:01:06.7]} 27. Rag1 {[%clk 0:00:13.7]} 27... Rxg1
{[%clk 0:01:05.2]} 28. Kxg1 {[%clk 0:00:14.6]} 28... Qg7+ {[%clk 0:01:03]} 29.
Kf2 {[%clk 0:00:15.1]} 29... Rg8 {[%clk 0:01:02.6]} 30. Ke1 {[%clk 0:00:13.9]}
30... Qg2 {[%clk 0:01:00.8]} 31. Rf1 {[%clk 0:00:10.6]} 31... Rg3 {[%clk
0:01:00.5]} 32. Qf2 {[%clk 0:00:05.9]} 32... Qh3 {[%clk 0:00:55.2]} 33. Rg1
{[%clk 0:00:04.6]} 33... Rxc3 {[%clk 0:00:51.5]} 34. Qg2 {[%clk 0:00:01.6]}
34... Qxg2 {[%clk 0:00:38.1]} 35. Rxg2 {[%clk 0:00:01.3]} 35... e3 {[%clk
0:00:36]} 0-1

[Event "*** Titled Tuesday Blitz"]
[Site "Chess.com"]
[Date "2020.12.01"]
[Round "6"]
[White "Funo09"]
[Black "Pelopidass"]
[Result "0-1"]
[WhiteElo "2743"]
[BlackElo "2577"]
[TimeControl "180+1"]
[EndTime "11:04:51 PST"]
[Termination "Pelopidass won by resignation"]

1. e4 {[%clk 0:03:00.9]} 1... c5 {[%clk 0:02:59.3]} 2. Nf3 {[%clk 0:02:55.4]}
2... d6 {[%clk 0:02:59.5]} 3. Nc3 {[%clk 0:02:55.4]} 3... Nf6 {[%clk 0:02:59.1]}
4. d4 {[%clk 0:02:56]} 4... cxd4 {[%clk 0:03:00]} 5. Nxd4 {[%clk 0:02:56.9]}
5... a6 {[%clk 0:03:00.4]} 6. Be2 {[%clk 0:02:57.3]} 6... e5 {[%clk 0:03:00]} 7.
Nb3 {[%clk 0:02:56.6]} 7... Be7 {[%clk 0:02:59.5]} 8. O-O {[%clk 0:02:57.1]}
8... O-O {[%clk 0:02:59.4]} 9. a4 {[%clk 0:02:58]} 9... Be6 {[%clk 0:02:58.1]}
10. Be3 {[%clk 0:02:57.4]} 10... Nbd7 {[%clk 0:02:54.2]} 11. Qd2 {[%clk
0:02:57.5]} 11... Nb6 {[%clk 0:02:51.5]} 12. Rfd1 {[%clk 0:02:55.9]} 12... Nc4
{[%clk 0:02:48.9]} 13. Bxc4 {[%clk 0:02:55.5]} 13... Bxc4 {[%clk 0:02:49.8]} 14.
a5 {[%clk 0:02:53.6]} 14... Qc7 {[%clk 0:02:35.2]} 15. f3 {[%clk 0:02:50.1]}
15... Rac8 {[%clk 0:02:28.9]} 16. Kh1 {[%clk 0:02:44.3]} 16... Qc6 {[%clk
0:02:19.6]} 17. Ra4 {[%clk 0:02:23.7]} 17... Be6 {[%clk 0:02:14.4]} 18. Bb6
{[%clk 0:02:17.7]} 18... h6 {[%clk 0:01:45.6]} 19. Nc1 {[%clk 0:02:05.9]} 19...
d5 {[%clk 0:01:33.6]} 20. exd5 {[%clk 0:02:01.3]} 20... Nxd5 {[%clk 0:01:32.9]}
21. N1e2 {[%clk 0:01:56.6]} 21... Bg5 {[%clk 0:01:25.7]} 22. Qd3 {[%clk
0:01:46.4]} 22... Nxb6 {[%clk 0:01:20.4]} 23. axb6 {[%clk 0:01:40.6]} 23... Rfd8
{[%clk 0:01:16.9]} 24. Qe4 {[%clk 0:01:39.8]} 24... Rxd1+ {[%clk 0:01:10.6]} 25.
Nxd1 {[%clk 0:01:40.7]} 25... Qxe4 {[%clk 0:01:08.5]} 26. Rxe4 {[%clk
0:01:41.6]} 26... Rxc2 {[%clk 0:01:08]} 27. Rxe5 {[%clk 0:01:41.6]} 27... Bf6
{[%clk 0:00:56.1]} 28. Re3 {[%clk 0:01:36.2]} 28... Bxb2 {[%clk 0:00:52.1]} 29.
h3 {[%clk 0:01:26.2]} 29... Bc1 {[%clk 0:00:46.6]} 30. Re5 {[%clk 0:01:19.8]}
30... Bc4 {[%clk 0:00:33.5]} 31. Ndc3 {[%clk 0:01:06.7]} 31... Bb2 {[%clk
0:00:26.5]} 32. Re4 {[%clk 0:00:53.1]} 32... Be6 {[%clk 0:00:18.4]} 33. Na4
{[%clk 0:00:50.7]} 33... Ba3 {[%clk 0:00:13.9]} 34. Nf4 {[%clk 0:00:50.5]} 34...
Rc1+ {[%clk 0:00:13.1]} 35. Kh2 {[%clk 0:00:50.7]} 35... Bd6 {[%clk 0:00:13.7]}
36. g3 {[%clk 0:00:49.8]} 36... Rc2+ {[%clk 0:00:13.1]} 37. Kh1 {[%clk 0:00:50]}
37... Bxf4 {[%clk 0:00:13.5]} 38. Rxf4 {[%clk 0:00:50.4]} 38... Bxh3 {[%clk
0:00:13.6]} 39. g4 {[%clk 0:00:48.8]} 39... Bf1 {[%clk 0:00:12.5]} 40. Rb4
{[%clk 0:00:34.9]} 40... Bg2+ {[%clk 0:00:12.2]} 41. Kg1 {[%clk 0:00:35.1]}
41... Bxf3 {[%clk 0:00:12.7]} 0-1

[Event "*** Titled Tuesday Blitz"]
[Site "Chess.com"]
[Date "2020.12.01"]
[Round "6"]
[White "Konavets"]
[Black "Mazetovic"]
[Result "1-0"]
[WhiteElo "3007"]
[BlackElo "2718"]
[TimeControl "180+1"]
[EndTime "11:04:54 PST"]
[Termination "Konavets won by resignation"]

1. d4 {[%clk 0:03:00.9]} 1... Nf6 {[%clk 0:02:59.7]} 2. c4 {[%clk 0:03:00.2]}
2... g6 {[%clk 0:02:59.9]} 3. Nc3 {[%clk 0:03:00.2]} 3... Bg7 {[%clk 0:03:00.2]}
4. e4 {[%clk 0:03:00.1]} 4... O-O {[%clk 0:02:59.9]} 5. Be2 {[%clk 0:03:01]}
5... d6 {[%clk 0:02:59.8]} 6. Be3 {[%clk 0:03:01.9]} 6... Na6 {[%clk 0:02:58.9]}
7. Nf3 {[%clk 0:03:01.1]} 7... e5 {[%clk 0:02:58.4]} 8. d5 {[%clk 0:03:01.4]}
8... c5 {[%clk 0:02:53.4]} 9. Nd2 {[%clk 0:02:59.9]} 9... h5 {[%clk 0:02:43.8]}
10. Bg5 {[%clk 0:02:55.1]} 10... Qd7 {[%clk 0:02:36.1]} 11. h4 {[%clk
0:02:44.6]} 11... Nc7 {[%clk 0:02:34.4]} 12. f3 {[%clk 0:02:39.9]} 12... a6
{[%clk 0:02:21]} 13. a4 {[%clk 0:02:39]} 13... Kh8 {[%clk 0:02:18.4]} 14. a5
{[%clk 0:02:34.6]} 14... Nh7 {[%clk 0:02:17.3]} 15. Be3 {[%clk 0:02:32.3]} 15...
f5 {[%clk 0:02:12.9]} 16. Qc2 {[%clk 0:02:30.4]} 16... Qf7 {[%clk 0:02:05.5]}
17. Na4 {[%clk 0:02:30]} 17... Rb8 {[%clk 0:02:05.1]} 18. Nb6 {[%clk 0:02:29.7]}
18... Na8 {[%clk 0:02:04.9]} 19. Na4 {[%clk 0:02:24.8]} 19... Bd7 {[%clk
0:02:04]} 20. Kd1 {[%clk 0:02:14.8]} 20... f4 {[%clk 0:01:53.3]} 21. Bf2 {[%clk
0:02:14.6]} 21... b5 {[%clk 0:01:44.1]} 22. axb6 {[%clk 0:02:13.4]} 22... Nxb6
{[%clk 0:01:43.6]} 23. Nc3 {[%clk 0:02:13]} 23... Ra8 {[%clk 0:01:38.7]} 24. Ra5
{[%clk 0:02:11.1]} 24... Rfb8 {[%clk 0:01:36.5]} 25. Qb1 {[%clk 0:02:07.6]}
25... Bf6 {[%clk 0:01:35.8]} 26. Qa2 {[%clk 0:02:06.6]} 26... Bc8 {[%clk
0:01:35]} 27. Kc2 {[%clk 0:02:05.4]} 27... Bd8 {[%clk 0:01:34.5]} 28. Ra1 {[%clk
0:02:05.4]} 28... Nd7 {[%clk 0:01:30.3]} 29. Ra3 {[%clk 0:02:05.3]} 29... Rb4
{[%clk 0:01:20]} 30. Rb3 {[%clk 0:01:46.2]} 30... Rab8 {[%clk 0:01:18.4]} 31.
Rxb4 {[%clk 0:01:44.1]} 31... cxb4 {[%clk 0:01:17.1]} 32. Na4 {[%clk 0:01:44.3]}
32... a5 {[%clk 0:01:07.8]} 33. c5 {[%clk 0:01:36.4]} 33... dxc5 {[%clk
0:01:06.4]} 34. Bc4 {[%clk 0:01:33.8]} 34... Nhf6 {[%clk 0:01:00.9]} 35. Nb3
{[%clk 0:01:32.5]} 35... Ne8 {[%clk 0:01:00.5]} 36. Naxc5 {[%clk 0:01:18.3]}
36... Nd6 {[%clk 0:00:49.7]} 37. Ne6 {[%clk 0:01:17.2]} 37... Nxc4 {[%clk
0:00:35.5]} 38. Nxd8 {[%clk 0:01:17.1]} 38... Qf8 {[%clk 0:00:34.2]} 39. Nc6
{[%clk 0:01:16]} 39... Rb5 {[%clk 0:00:29.6]} 40. Qa4 {[%clk 0:01:13.2]} 40...
Ba6 {[%clk 0:00:28.9]} 41. Nbxa5 {[%clk 0:01:08.8]} 41... Nxa5 {[%clk
0:00:26.9]} 42. Nxa5 {[%clk 0:01:09.7]} 42... Qc8+ {[%clk 0:00:16.8]} 43. Kd2
{[%clk 0:01:04.7]} 43... Nc5 {[%clk 0:00:15]} 44. Qc2 {[%clk 0:01:00.7]} 44...
b3 {[%clk 0:00:11.1]} 45. Qc3 {[%clk 0:01:00.8]} 45... Nd7 {[%clk 0:00:05.8]}
46. Qxc8+ {[%clk 0:00:54.6]} 46... Bxc8 {[%clk 0:00:05.9]} 47. Nc4 {[%clk
0:00:55.5]} 47... Rb4 {[%clk 0:00:05.8]} 48. Kc3 {[%clk 0:00:55.3]} 48... Rb8
{[%clk 0:00:05.5]} 49. Nxe5 {[%clk 0:00:55.3]} 49... Nxe5 {[%clk 0:00:05.2]} 50.
Bd4 {[%clk 0:00:55.9]} 50... Kg8 {[%clk 0:00:05.7]} 51. Bxe5 {[%clk 0:00:56.3]}
51... Rb7 {[%clk 0:00:06.2]} 52. Ra8 {[%clk 0:00:56.7]} 1-0

[Event "*** Titled Tuesday Blitz"]
[Site "Chess.com"]
[Date "2020.12.01"]
[Round "6"]
[White "paulrusan"]
[Black "NeverW84M8"]
[Result "0-1"]
[WhiteElo "2262"]
[BlackElo "2541"]
[TimeControl "180+1"]
[EndTime "11:04:55 PST"]
[Termination "NeverW84M8 won by resignation"]

1. e4 {[%clk 0:03:00.9]} 1... e5 {[%clk 0:03:00.1]} 2. Nf3 {[%clk 0:03:00.3]}
2... Nc6 {[%clk 0:03:00.6]} 3. Bc4 {[%clk 0:02:59.4]} 3... Bc5 {[%clk
0:03:00.6]} 4. b4 {[%clk 0:02:59]} 4... Bxb4 {[%clk 0:03:00.6]} 5. c3 {[%clk
0:02:58.9]} 5... Ba5 {[%clk 0:03:01.1]} 6. d4 {[%clk 0:02:58.6]} 6... exd4
{[%clk 0:03:02]} 7. O-O {[%clk 0:02:58.7]} 7... Nf6 {[%clk 0:03:02.4]} 8. e5
{[%clk 0:02:58.5]} 8... d5 {[%clk 0:03:02.4]} 9. exf6 {[%clk 0:02:58.8]} 9...
dxc4 {[%clk 0:03:02.3]} 10. Re1+ {[%clk 0:02:58.5]} 10... Be6 {[%clk 0:03:01.3]}
11. fxg7 {[%clk 0:02:58.1]} 11... Rg8 {[%clk 0:03:01.6]} 12. Bg5 {[%clk
0:02:58.1]} 12... Qd5 {[%clk 0:02:57.8]} 13. Nbd2 {[%clk 0:02:58.1]} 13... Rxg7
{[%clk 0:02:12.5]} 14. Ne4 {[%clk 0:02:56.4]} 14... Qf5 {[%clk 0:02:12.1]} 15.
Nxd4 {[%clk 0:02:32.2]} 15... Qg6 {[%clk 0:01:04.5]} 16. g3 {[%clk 0:01:20.3]}
16... Bxc3 {[%clk 0:00:50.3]} 17. Nxe6 {[%clk 0:01:01.4]} 17... fxe6 {[%clk
0:00:49.6]} 18. Rc1 {[%clk 0:00:58.6]} 18... Bxe1 {[%clk 0:00:46.1]} 19. Qxe1
{[%clk 0:00:53.1]} 19... Kf7 {[%clk 0:00:28.2]} 20. Rxc4 {[%clk 0:00:52.1]}
20... Kg8 {[%clk 0:00:24.9]} 21. h4 {[%clk 0:00:43.9]} 21... Rf8 {[%clk
0:00:24]} 22. Qe2 {[%clk 0:00:40]} 22... Ne5 {[%clk 0:00:23]} 23. Nf6+ {[%clk
0:00:28.9]} 23... Rxf6 {[%clk 0:00:18.4]} 24. Qxe5 {[%clk 0:00:29.1]} 24... Rff7
{[%clk 0:00:17.1]} 25. f4 {[%clk 0:00:24.6]} 25... Qb1+ {[%clk 0:00:15]} 26. Kh2
{[%clk 0:00:18.6]} 26... Qxa2+ {[%clk 0:00:15]} 27. Kh3 {[%clk 0:00:17.1]} 27...
Qxc4 {[%clk 0:00:15.1]} 28. h5 {[%clk 0:00:14.5]} 28... Qd5 {[%clk 0:00:15.2]}
29. Qc3 {[%clk 0:00:13.3]} 29... Rxg5 {[%clk 0:00:15.2]} 30. fxg5 {[%clk
0:00:13.1]} 30... Qxg5 {[%clk 0:00:15.8]} 31. g4 {[%clk 0:00:10]} 31... Qf6
{[%clk 0:00:16]} 32. Qc4 {[%clk 0:00:04.3]} 32... Qf1+ {[%clk 0:00:15.8]} 33.
Kh4 {[%clk 0:00:04.8]} 33... Qxc4 {[%clk 0:00:15.7]} 0-1

[Event "*** Titled Tuesday Blitz"]
[Site "Chess.com"]
[Date "2020.12.01"]
[Round "6"]
[White "leoduarte"]
[Black "SanchezKelvin"]
[Result "1-0"]
[WhiteElo "2341"]
[BlackElo "2469"]
[TimeControl "180+1"]
[EndTime "11:04:58 PST"]
[Termination "leoduarte won by checkmate"]

1. e4 {[%clk 0:03:00.9]} 1... c5 {[%clk 0:03:00]} 2. Nf3 {[%clk 0:03:01]} 2...
d6 {[%clk 0:03:00.4]} 3. d4 {[%clk 0:03:00.2]} 3... cxd4 {[%clk 0:03:01.3]} 4.
Nxd4 {[%clk 0:03:00.7]} 4... Nf6 {[%clk 0:03:01.5]} 5. Nc3 {[%clk 0:03:01.2]}
5... g6 {[%clk 0:03:01.9]} 6. h3 {[%clk 0:02:53.6]} 6... Bg7 {[%clk 0:03:00.9]}
7. Bc4 {[%clk 0:02:52.2]} 7... Nc6 {[%clk 0:03:00.6]} 8. Nf3 {[%clk 0:02:51.8]}
8... O-O {[%clk 0:03:00.1]} 9. O-O {[%clk 0:02:52.2]} 9... a5 {[%clk 0:02:56.1]}
10. a4 {[%clk 0:02:24.1]} 10... Nb4 {[%clk 0:02:50.2]} 11. Re1 {[%clk
0:02:17.1]} 11... e6 {[%clk 0:02:47.5]} 12. Bb3 {[%clk 0:02:08.5]} 12... d5
{[%clk 0:02:42.9]} 13. e5 {[%clk 0:01:45.3]} 13... Nd7 {[%clk 0:02:42.2]} 14.
Nb5 {[%clk 0:01:44.2]} 14... h6 {[%clk 0:02:35]} 15. c3 {[%clk 0:01:43.1]} 15...
Nc6 {[%clk 0:02:31.9]} 16. Bf4 {[%clk 0:01:34.7]} 16... Nc5 {[%clk 0:02:06.4]}
17. Bc2 {[%clk 0:01:32]} 17... b6 {[%clk 0:02:06.2]} 18. Qd2 {[%clk 0:01:30.8]}
18... Kh7 {[%clk 0:01:56.2]} 19. h4 {[%clk 0:01:30.7]} 19... h5 {[%clk
0:01:15.4]} 20. Ng5+ {[%clk 0:00:48.1]} 20... Kg8 {[%clk 0:01:12.6]} 21. Rad1
{[%clk 0:00:48.5]} 21... Ba6 {[%clk 0:01:06.6]} 22. Nd6 {[%clk 0:00:48.5]} 22...
Qe7 {[%clk 0:01:00.4]} 23. b4 {[%clk 0:00:42]} 23... axb4 {[%clk 0:00:26]} 24.
cxb4 {[%clk 0:00:42.9]} 24... Nd7 {[%clk 0:00:17.3]} 25. b5 {[%clk 0:00:40.9]}
25... Ncxe5 {[%clk 0:00:17]} 26. Bxe5 {[%clk 0:00:30.3]} 26... Nxe5 {[%clk
0:00:16.6]} 27. Ndxf7 {[%clk 0:00:19.9]} 27... Nc4 {[%clk 0:00:11.4]} 28. Qe2
{[%clk 0:00:08.7]} 28... Bc8 {[%clk 0:00:10.3]} 29. Bxg6 {[%clk 0:00:07.4]}
29... Qf6 {[%clk 0:00:07.2]} 30. Bh7# {[%clk 0:00:06.7]} 1-0